Workbook

Sheet Stabilized
A1: Central 12 | E1: KEY | F1: Edit the yellow cells
A2: Financial Overview | C2: =TODAY() -> 2026-03-09
A4: PROPERTY SUMMARY | F4: PROPERTY INCOME: STABILIZED
C5: Total | D5: $ Per Unit
A6: Number of units | C6: 12 | H6: Annual | I6: Per Unit Avg
A7: Purchase Price | C7: 1350000 | D7: =C7/C6 -> 112500 | F7: Gross Potential Rent | H7: =E35 -> 165600 | I7: =H7/$C$6 -> 13800
A8: Retrofit Cost | B8: ADD WD in unit | C8: 60000 | D8: =C8/C6 -> 5000 | F8: Other Income | H8: ='Stabilized Details'!D5 -> 13680 | I8: 1140
F9: Gross Potential Income | H9: =H7+H8 -> 179280 | I9: 14940
F10: Vacancy Loss @ | G10: ='Stabilized Details'!B7 -> 0.05 | H10: ='Stabilized Details'!D7 -> -8280 | I10: -690
F11: Effective Gross Income | H11: =H9+H10 -> 171000 | I11: 14250
F12: Less: Expenses | H12: ='Stabilized Details'!D16 -> -62920 | I12: -5243.333333
A13: Total | C13: =SUM(C7:C12) -> 1410000 | D13: 117500 | F13: Net Operating Income | H13: =SUM(H11:H12) -> 108080
F14: Cap Rate | H14: =H13/C13 -> 0.07665248227
A15: FINANCING ASSUMPTIONS | F15: Annual Debt Service | H15: =-C23 -> -83712.04411
F16: Operating Cash Flow | H16: =H15+H13 -> 24367.95589
A17: Initial Equity | C17: =(1-C19)*C13 -> 352500 | F17: Debt Service Coverage Ratio | H17: =-H13/H15 -> 1.291092592
A18: Loan Amount | C18: =C19*C13 -> 1057500 | F18: Gross Rent Multiplier | H18: =C13/H9 -> 7.864792503
A19: Loan-to-Value | C19: 0.75 | F19: Internal Rate of Return | H19: ='Stabilized Details'!L11 -> 0.2664409134
F20: Year 1 Cash-on-Cash Return | H20: =H16/C17 -> 0.06912895288
A21: Interest Rate | C21: 0.0625 | F21: First Year Principal Reduction | H21: =CUMPRINC('Stabilized Details'!L18/12,'Stabilized Details'!O20,'Stabilized Details'!L17,1,12,0) -> -18131.85036
A22: Amortization | C22: 25 | D22: YR
A23: Annual Payment | C23: ='Stabilized Details'!O25 -> 83712.04411 | F23: DISPOSITION
F24: Anticipated Sale Year | I24: Year 5
A25: ACQUISITION / DISPOSITION TIMELINE | F25: Cap Rate at Sale | I25: ='Stabilized Details'!D26 -> 0.06
F26: Sale Price Per Unit | I26: ='Stabilized Details'!D27/C6 -> 167317.0357
A27: Acquisition Month/Year | C27: =C2+60 -> 2026-05-08 | F27: Gross Cap of Proforma Yr NOI | I27: ='Stabilized Details'!D27 -> 2007804.429
A28: Months to Stabilization | C28: 12 | F28: Net Proceeds (Minus Equity Invested) | I28: ='Stabilized Details'!D32 -> 580432.7546
A29: Anticipated Hold after Stabilization | C29: 5 years | F29: Yield on Equity | I29: =I28/C17 -> 1.646617744
A32: Unit Mix / Rent Schedule
A33: Units | B33: Type | C33: SF | D33: Mkt Rent | E33: Annual Rent
A34: 12 | B34: 1BR 1BA | C34: 740 | D34: 1150 | E34: =(D34*12)*A34 -> 165600
A35: =SUM(A34) -> 12 | E35: =sum(E34) -> 165600

Sheet Stabilized Details
A1: =Stabilized!A1 -> Central 12 | D1: KEY | E1: Edit the yellow cells
A2: Snapshot | F2: Yr 5 | I2: IRR
B3: Assumptions | D3: Stabilized | E3: GPR | F3: Proforma | G3: GPR | I3: EOY | J3: Cash Flows | K3: + | L3: Sale Proceeds | M3: Total | N3: Return
A4: Gross Potential Rent | D4: =Stabilized!H7 -> 165600 | F4: =(D4*(1+D$38))*(1+D$38)*(1+D$38)*(1+D$38) -> 184581.2806 | I4: 0 | J4: =-Stabilized!C17 -> -352500 | M4: =-Stabilized!C17 -> -352500
A5: Other Inc avg: Pet, Park, Trash, Water | B5: 95 | D5: =B5*12*Stabilized!C6 -> 13680 | F5: 15248.01883 | I5: 1 | J5: =Stabilized!H16 -> 24367.95589 | K5: + | M5: =J5+L5 -> 24367.95589 | N5: =M5/Stabilized!$C$17 -> 0.06912895288
A6: Gross Potential Income | D6: =SUM(D4:D5) -> 179280 | F6: =F5+F4 -> 199829.2994 | I6: 2 | J6: =J5*(1+'Stabilized Details'!D$38) -> 25038.07468 | K6: + | M6: 25038.07468 | N6: =M6/Stabilized!$C$17 -> 0.07102999909
A7: Less: Vacancy % | B7: 0.05 | D7: =B7*-D4 -> -8280 | E7: =B7 -> 0.05 | F7: =B7*-F4 -> -9229.064028 | G7: =B7 -> 0.05 | I7: 3 | J7: =J6*(1+'Stabilized Details'!D$38) -> 25726.62173 | K7: + | M7: 25726.62173 | N7: =M7/Stabilized!$C$17 -> 0.07298332406
A8: Effective Gross Income | D8: =SUM(D6:D7) -> 171000 | F8: =SUM(F6:F7) -> 190600.2354 | I8: 4 | J8: =J7*(1+'Stabilized Details'!D$38) -> 26434.10383 | K8: + | M8: 26434.10383 | N8: =M8/Stabilized!$C$17 -> 0.07499036548
I9: 5 | J9: =J8*(1+'Stabilized Details'!D$38) -> 27161.04169 | K9: + | L9: ='Stabilized Details'!D31 -> 932932.7546 | M9: 960093.7963 | N9: =M9/Stabilized!$C$17 -> 2.723670344
A10: Real Estate Taxes | B10: 2025 Actual | D10: -11760 | E10: =-D10/$D$8 -> 0.06877192982 | F10: =(D10*(1+D$39))*(1+D$39)*(1+D$39)*(1+D$39) -> -13107.94601 | G10: =-F10/$F$8 -> 0.06877192982 | M10: =SUM(M4:M9) -> 709160.5524
A11: Property Insurance | B11: $900 per unit | D11: -10800 | E11: 0.06315789474 | F11: -12037.9096 | G11: 0.06315789474 | I11: IRR | L11: =IRR(M4:M9) -> 0.2664409134
A12: Utilities: Vacant, Common Utils | B12: Est | D12: -8725 | E12: 0.05102339181 | F12: -9725.070488 | G12: 0.05102339181
A13: Management @ | B13: 0.08 | D13: =-($D$8*B13) -> -13680 | E13: 0.08 | F13: -15248.01883 | G13: 0.08
A14: Leasing @ | B14: 0.015 | D14: -2565 | E14: 0.015 | F14: -2859.00353 | G14: 0.015
A15: Maintenance @ | B15: 0.09 | D15: -15390 | E15: 0.09 | F15: -17154.02118 | G15: 0.09
A16: Total Expenses: | D16: =SUM(D10:D15) -> -62920 | E16: =SUM(E7:E15) -> 0.4179532164 | F16: -70131.96964 | G16: =SUM(G7:G15) -> 0.4179532164 | J16: LOAN DATA
K17: Loan amount: | L17: =+Stabilized!$C$18 -> 1057500
A18: NOI | D18: =D8+D16 -> 108080 | F18: =F8+F16 -> 120468.2657 | K18: **Annual interest rate: | L18: =Stabilized!C21 -> 0.0625
A19: Cap Rate to Cost | D19: =D18/Stabilized!C13 -> 0.07665248227 | F19: =F18/Stabilized!C13 -> 0.08543848632 | K19: Term in years: | L19: =Stabilized!C22 -> 25
A20: Annual Debt Service | D20: =-Stabilized!C23 -> -83712.04411 | F20: =-Stabilized!C23 -> -83712.04411 | K20: Payments per year: | L20: 12 | N20: Total Payments | O20: =L19*L20 -> 300
A21: Operating Cash Flow | D21: =D18+D20 -> 24367.95589 | F21: =F18+F20 -> 36756.22161 | K21: First payment due: | L21: =Stabilized!$C$27 -> 2026-05-08 | N21: Periodic Rate | O21: =L18/L20 -> 0.005208333333
A22: Cash-on-Cash Return | D22: =D21/Stabilized!C17 -> 0.06912895288 | F22: =F21/Stabilized!C17 -> 0.1042729691
J23: PERIODIC PAYMENT
K24: Entered payment: | L24: 0
A25: DISPOSITION | K25: Calculated payment: | L25: =PMT($O$21,$O$20,-$L$17) -> 6976.003676 | N25: Annual Payment | O25: =L25*L20 -> 83712.04411
A26: Anticipated Cap Rate at Sale | D26: 0.06
A27: Gross Cap of Proforma YR NOI | D27: =F18/D26 -> 2007804.429
A28: Disposition Costs @ | B28: 0.06 | D28: =-B28*D27 -> -120468.2657
A29: Net Sale Proceeds befor eTax and Debt Repayment | D29: =D27+D28 -> 1887336.163
A30: Less Loan Principal Remaining | D30: =-FV($L$18/12,60,$L$25,-$L$17,0) -> -954403.4083
A31: Net Sales Proceeds (After Debt) | D31: =D29+D30 -> 932932.7546
A32: Net Profit (Minus Equity) ** | D32: =D31-Stabilized!C17 -> 580432.7546
A33: Yield on Equity | D33: =D32/Stabilized!C17 -> 1.646617744
A35: Notes:
A36: *Anticipated Sale Year
A37: **Does not take operating cash flow into consideration
A38: Global Annual Income Growth Rate | D38: 0.0275
A39: Global Annual Expense Growth Rate | D39: 0.0275
